[Event "Titled Tuesday Blitz January 17 Early 2023"]
[White "Matveeva, Olga"]
[Black "MitzyCaballero"]
[WhiteFideId "24107018"]
[WhiteElo "2128"]
[BlackElo "2235"]
[Result "1-0"]
[Round "07"]
[TimeControl "180+2"]
[Date "2023.01.17"]
[WhiteClock "0:00:33"]
[BlackClock "0:00:05"]

1. d4 {[%clk 0:03:00]}  e6 {[%clk 0:02:58]} 2. c4 {[%clk 0:03:01]}  f5 {[%clk 0:02:55]} 3. Nf3 {[%clk 0:03:00]}  Nf6 {[%clk 0:02:55]} 4. g3 {[%clk 0:03:00]}  Bb4+ {[%clk 0:02:55]} 5. Bd2 {[%clk 0:02:59]}  Qe7 {[%clk 0:02:56]} 6. Bg2 {[%clk 0:02:59]}  O-O {[%clk 0:02:55]} 7. O-O {[%clk 0:02:59]}  Bxd2 {[%clk 0:02:56]} 8. Nbxd2 {[%clk 0:02:58]}  d6 {[%clk 0:02:52]} 9. Qc2 {[%clk 0:02:57]}  Nbd7 {[%clk 0:02:51]} 10. Rad1 {[%clk 0:02:56]}  h6 {[%clk 0:02:27]} 11. e4 {[%clk 0:02:55]}  fxe4 {[%clk 0:02:25]} 12. Nxe4 {[%clk 0:02:54]}  Nxe4 {[%clk 0:02:10]} 13. Qxe4 {[%clk 0:02:55]}  Nf6 {[%clk 0:02:10]} 14. Qc2 {[%clk 0:02:54]}  Bd7 {[%clk 0:02:02]} 15. Rfe1 {[%clk 0:02:54]}  c6 {[%clk 0:01:57]} 16. Nh4 {[%clk 0:02:51]}  Qf7 {[%clk 0:01:47]} 17. Ng6 {[%clk 0:02:50]}  Rfe8 {[%clk 0:01:47]} 18. Nf4 {[%clk 0:02:45]}  g5 {[%clk 0:01:43]} 19. Nd3 {[%clk 0:02:36]}  Re7 {[%clk 0:01:42]} 20. f4 {[%clk 0:02:32]}  Rf8 {[%clk 0:01:36]} 21. fxg5 {[%clk 0:02:28]}  hxg5 {[%clk 0:01:37]} 22. Rf1 {[%clk 0:02:27]}  Qh5 {[%clk 0:01:32]} 23. Qd2 {[%clk 0:01:57]}  Be8 {[%clk 0:01:31]} 24. h3 {[%clk 0:01:45]}  Bg6 {[%clk 0:01:30]} 25. Rf2 {[%clk 0:01:41]}  Ref7 {[%clk 0:01:29]} 26. Re1 {[%clk 0:01:33]}  Re8 {[%clk 0:00:46]} 27. Rfe2 {[%clk 0:01:23]}  Rfe7 {[%clk 0:00:41]} 28. Qe3 {[%clk 0:01:18]}  Kg7 {[%clk 0:00:33]} 29. Rf2 {[%clk 0:01:09]}  Qh6 {[%clk 0:00:32]} 30. Ref1 {[%clk 0:01:05]}  Rf7 {[%clk 0:00:30]} 31. c5 {[%clk 0:00:56]}  Bxd3 {[%clk 0:00:22]} 32. Qxd3 {[%clk 0:00:53]}  d5 {[%clk 0:00:20]} 33. Qe3 {[%clk 0:00:50]}  Qg6 {[%clk 0:00:13]} 34. Qe5 {[%clk 0:00:49]}  Ree7 {[%clk 0:00:09]} 35. Bf3 {[%clk 0:00:43]}  Re8 {[%clk 0:00:09]} 36. Bd1 {[%clk 0:00:41]}  Ree7 {[%clk 0:00:07]} 37. Bc2 {[%clk 0:00:38]}  Qh6 {[%clk 0:00:08]} 38. Kg2 {[%clk 0:00:36]}  g4 {[%clk 0:00:05]} 39. hxg4 {[%clk 0:00:33]} 1-0


[Site "https://www.chess.com"]

[Event "Titled Tuesday Blitz January 17 Early 2023"]
[White "Winkels, Marcel"]
[Black "Deev, Andrei"]
[WhiteFideId "1003887"]
[BlackFideId "4102690"]
[WhiteElo "1960"]
[BlackElo "2390"]
[Result "0-1"]
[Round "07"]
[TimeControl "180+2"]
[Date "2023.01.17"]
[WhiteClock "0:00:02"]
[BlackClock "0:00:51"]

1. e4 {[%clk 0:03:00]}  d6 {[%clk 0:02:59]} 2. d4 {[%clk 0:03:00]}  Nf6 {[%clk 0:03:00]} 3. Nc3 {[%clk 0:03:00]}  c6 {[%clk 0:02:59]} 4. f4 {[%clk 0:02:58]}  Qa5 {[%clk 0:02:58]} 5. Bd2 {[%clk 0:02:56]}  Qb6 {[%clk 0:02:57]} 6. Nf3 {[%clk 0:02:55]}  Bg4 {[%clk 0:02:55]} 7. e5 {[%clk 0:02:39]}  Nd5 {[%clk 0:02:55]} 8. Nxd5 {[%clk 0:02:33]}  cxd5 {[%clk 0:02:53]} 9. Bc3 {[%clk 0:02:07]}  e6 {[%clk 0:02:51]} 10. Bd3 {[%clk 0:02:05]}  Nc6 {[%clk 0:02:50]} 11. Be2 {[%clk 0:01:51]}  Bxf3 {[%clk 0:02:23]} 12. Bxf3 {[%clk 0:01:49]}  dxe5 {[%clk 0:02:18]} 13. fxe5 {[%clk 0:01:42]}  Bb4 {[%clk 0:02:17]} 14. Qd3 {[%clk 0:00:55]}  O-O {[%clk 0:02:10]} 15. O-O-O {[%clk 0:00:53]}  Rac8 {[%clk 0:02:02]} 16. Bxb4 {[%clk 0:00:50]}  Nxb4 {[%clk 0:02:01]} 17. Qb3 {[%clk 0:00:43]}  Rxc2+ {[%clk 0:01:29]} 18. Kb1 {[%clk 0:00:40]}  Rc4 {[%clk 0:01:19]} 19. a3 {[%clk 0:00:36]}  Nc6 {[%clk 0:01:18]} 20. Qxb6 {[%clk 0:00:35]}  axb6 {[%clk 0:01:19]} 21. Be2 {[%clk 0:00:18]}  Rxd4 {[%clk 0:01:18]} 22. Bb5 {[%clk 0:00:19]}  Re4 {[%clk 0:01:14]} 23. Rc1 {[%clk 0:00:16]}  Rc8 {[%clk 0:01:11]} 24. Rhe1 {[%clk 0:00:14]}  Rxe1 {[%clk 0:01:04]} 25. Rxe1 {[%clk 0:00:13]}  Nd4 {[%clk 0:01:00]} 26. Bd3 {[%clk 0:00:09]}  g6 {[%clk 0:00:59]} 27. Rf1 {[%clk 0:00:06]}  Rc5 {[%clk 0:00:54]} 28. g4 {[%clk 0:00:04]}  Nc6 {[%clk 0:00:52]} 29. Re1 {[%clk 0:00:02]}  d4 {[%clk 0:00:51]} 0-1


[Site "https://www.chess.com"]

[Event "Titled Tuesday Blitz January 17 Early 2023"]
[White "Adithya A Chullikkad"]
[Black "Sovetbekova, Nurai"]
[WhiteFideId "45078734"]
[BlackFideId "13801910"]
[WhiteElo "2259"]
[BlackElo "1764"]
[Result "0-1"]
[Round "07"]
[TimeControl "180+2"]
[Date "2023.01.17"]
[WhiteClock "0:00:21"]
[BlackClock "0:00:21"]

1. Nf3 {[%clk 0:03:00]}  Nf6 {[%clk 0:02:51]} 2. g3 {[%clk 0:02:59]}  g6 {[%clk 0:02:50]} 3. Bg2 {[%clk 0:02:59]}  Bg7 {[%clk 0:02:50]} 4. O-O {[%clk 0:02:59]}  O-O {[%clk 0:02:51]} 5. c4 {[%clk 0:02:59]}  c5 {[%clk 0:02:50]} 6. Nc3 {[%clk 0:02:58]}  d6 {[%clk 0:02:50]} 7. b3 {[%clk 0:02:56]}  Nc6 {[%clk 0:02:48]} 8. Bb2 {[%clk 0:02:56]}  e5 {[%clk 0:02:43]} 9. e4 {[%clk 0:02:56]}  Nd4 {[%clk 0:02:34]} 10. d3 {[%clk 0:02:54]}  Bg4 {[%clk 0:02:33]} 11. Nd5 {[%clk 0:02:45]}  Nxd5 {[%clk 0:02:31]} 12. cxd5 {[%clk 0:02:42]}  Qf6 {[%clk 0:02:26]} 13. Bxd4 {[%clk 0:02:42]}  exd4 {[%clk 0:02:23]} 14. h3 {[%clk 0:02:42]}  Bd7 {[%clk 0:02:21]} 15. Nd2 {[%clk 0:02:38]}  Qe7 {[%clk 0:02:18]} 16. f4 {[%clk 0:02:37]}  f5 {[%clk 0:02:17]} 17. Qf3 {[%clk 0:02:32]}  Rae8 {[%clk 0:02:15]} 18. Rae1 {[%clk 0:02:31]}  Qf7 {[%clk 0:02:09]} 19. exf5 {[%clk 0:02:01]}  Bxf5 {[%clk 0:02:07]} 20. a4 {[%clk 0:01:55]}  a6 {[%clk 0:01:56]} 21. a5 {[%clk 0:01:53]}  Qc7 {[%clk 0:01:47]} 22. Nc4 {[%clk 0:01:52]}  Bd7 {[%clk 0:01:43]} 23. Qf2 {[%clk 0:01:44]}  Bb5 {[%clk 0:01:41]} 24. Rxe8 {[%clk 0:01:43]}  Rxe8 {[%clk 0:01:40]} 25. Re1 {[%clk 0:01:43]}  Rf8 {[%clk 0:01:22]} 26. Re6 {[%clk 0:01:29]}  Bxc4 {[%clk 0:01:19]} 27. bxc4 {[%clk 0:01:29]}  Qxa5 {[%clk 0:01:17]} 28. Rxd6 {[%clk 0:01:27]}  Qc3 {[%clk 0:01:12]} 29. Qe2 {[%clk 0:01:21]}  b5 {[%clk 0:01:09]} 30. Rd7 {[%clk 0:01:18]}  Qc1+ {[%clk 0:00:49]} 31. Kf2 {[%clk 0:01:15]}  bxc4 {[%clk 0:00:42]} 32. dxc4 {[%clk 0:01:13]}  Rb8 {[%clk 0:00:35]} 33. d6 {[%clk 0:00:19]}  Rb2 {[%clk 0:00:31]} 34. Bd5+ {[%clk 0:00:19]}  Kh8 {[%clk 0:00:23]} 35. Rd8+ {[%clk 0:00:20]}  Bf8 {[%clk 0:00:23]} 36. Rxf8+ {[%clk 0:00:20]}  Kg7 {[%clk 0:00:23]} 37. Rf7+ {[%clk 0:00:21]}  Kh6 {[%clk 0:00:23]} 38. d7 {[%clk 0:00:21]}  Qe3+ {[%clk 0:00:21]} 0-1


[Site "https://www.chess.com"]

[Event "Titled Tuesday Blitz January 17 Early 2023"]
[White "Cramling Bellon, Anna"]
[Black "Tharushi, T H D Niklesha"]
[WhiteFideId "32009232"]
[BlackFideId "9918264"]
[WhiteElo "2043"]
[BlackElo "1570"]
[Result "1-0"]
[Round "07"]
[TimeControl "180+2"]
[Date "2023.01.17"]
[WhiteClock "0:00:57"]
[BlackClock "0:00:17"]

1. d4 {[%clk 0:03:00]}  Nf6 {[%clk 0:02:57]} 2. c4 {[%clk 0:03:00]}  e6 {[%clk 0:02:57]} 3. Nc3 {[%clk 0:02:59]}  Bb4 {[%clk 0:02:57]} 4. Qc2 {[%clk 0:03:00]}  c5 {[%clk 0:02:52]} 5. dxc5 {[%clk 0:02:58]}  Bxc5 {[%clk 0:02:49]} 6. Nf3 {[%clk 0:02:58]}  O-O {[%clk 0:02:46]} 7. Bg5 {[%clk 0:02:58]}  Be7 {[%clk 0:02:41]} 8. e3 {[%clk 0:02:57]}  Nc6 {[%clk 0:02:39]} 9. a3 {[%clk 0:02:51]}  b6 {[%clk 0:02:40]} 10. Bd3 {[%clk 0:02:50]}  a5 {[%clk 0:02:39]} 11. Rd1 {[%clk 0:02:50]}  Ba6 {[%clk 0:02:38]} 12. Bxf6 {[%clk 0:02:47]}  Bxf6 {[%clk 0:02:38]} 13. Bxh7+ {[%clk 0:02:47]}  Kh8 {[%clk 0:02:38]} 14. Bd3 {[%clk 0:02:47]}  Rc8 {[%clk 0:02:15]} 15. Ne4 {[%clk 0:02:42]}  d5 {[%clk 0:02:07]} 16. Nxf6 {[%clk 0:02:41]}  Qxf6 {[%clk 0:02:07]} 17. b3 {[%clk 0:01:46]}  a4 {[%clk 0:01:42]} 18. O-O {[%clk 0:01:25]}  axb3 {[%clk 0:01:37]} 19. Qxb3 {[%clk 0:01:26]}  dxc4 {[%clk 0:00:40]} 20. Qxb6 {[%clk 0:01:16]}  cxd3 {[%clk 0:00:39]} 21. Qxa6 {[%clk 0:01:16]}  Qe7 {[%clk 0:00:24]} 22. Qxd3 {[%clk 0:01:11]}  Rfd8 {[%clk 0:00:24]} 23. Qe4 {[%clk 0:01:03]}  Qxa3 {[%clk 0:00:19]} 24. Rxd8+ {[%clk 0:00:58]}  Rxd8 {[%clk 0:00:17]} 25. Qxc6 {[%clk 0:00:57]} 1-0


[Site "https://www.chess.com"]

[Event "Titled Tuesday Blitz January 17 Early 2023"]
[White "Chan, Kim Yew"]
[Black "Soumya, Swaminathan"]
[WhiteFideId "5717981"]
[BlackFideId "5016193"]
[WhiteElo "2340"]
[BlackElo "2293"]
[Result "1-0"]
[Round "07"]
[TimeControl "180+2"]
[Date "2023.01.17"]
[WhiteClock "0:01:09"]
[BlackClock "0:00:02"]

1. d4 {[%clk 0:03:00]}  Nf6 {[%clk 0:02:53]} 2. Nf3 {[%clk 0:03:00]}  g6 {[%clk 0:02:49]} 3. c4 {[%clk 0:02:58]}  Bg7 {[%clk 0:02:48]} 4. Nc3 {[%clk 0:02:58]}  O-O {[%clk 0:02:46]} 5. Bg5 {[%clk 0:02:58]}  d6 {[%clk 0:02:07]} 6. e3 {[%clk 0:02:56]}  Nbd7 {[%clk 0:01:42]} 7. Be2 {[%clk 0:02:55]}  h6 {[%clk 0:01:30]} 8. Bh4 {[%clk 0:02:54]}  Re8 {[%clk 0:01:21]} 9. O-O {[%clk 0:02:54]}  Nf8 {[%clk 0:00:54]} 10. Qc2 {[%clk 0:02:50]}  c6 {[%clk 0:00:41]} 11. Rfd1 {[%clk 0:02:47]}  Qa5 {[%clk 0:00:40]} 12. Rab1 {[%clk 0:02:41]}  g5 {[%clk 0:00:19]} 13. b4 {[%clk 0:02:33]}  Qf5 {[%clk 0:00:15]} 14. Bd3 {[%clk 0:02:24]}  Qg4 {[%clk 0:00:15]} 15. h3 {[%clk 0:02:19]}  Qh5 {[%clk 0:00:05]} 16. Bg3 {[%clk 0:02:11]}  g4 {[%clk 0:00:06]} 17. hxg4 {[%clk 0:02:08]}  Bxg4 {[%clk 0:00:06]} 18. Be2 {[%clk 0:02:05]}  Qg6 {[%clk 0:00:04]} 19. Qd2 {[%clk 0:02:00]}  Nh5 {[%clk 0:00:03]} 20. Bh2 {[%clk 0:01:27]}  Bf6 {[%clk 0:00:03]} 21. b5 {[%clk 0:01:24]}  Qg7 {[%clk 0:00:03]} 22. Ne4 {[%clk 0:01:22]}  Bf5 {[%clk 0:00:01]} 23. Nxf6+ {[%clk 0:01:22]}  Nxf6 {[%clk 0:00:02]} 24. bxc6 {[%clk 0:01:13]}  Bxb1 {[%clk 0:00:01]} 25. cxb7 {[%clk 0:01:13]}  Rab8 {[%clk 0:00:02]} 26. Rxb1 {[%clk 0:01:13]}  Ne4 {[%clk 0:00:02]} 27. Qc2 {[%clk 0:01:09]} 1-0


[Site "https://www.chess.com"]

[Event "Titled Tuesday Blitz January 17 Early 2023"]
[White "Martinez, Shawn"]
[Black "Larina, Maria"]
[WhiteFideId "2039770"]
[BlackFideId "24113182"]
[WhiteElo "1881"]
[BlackElo "1948"]
[Result "1-0"]
[Round "07"]
[TimeControl "180+2"]
[Date "2023.01.17"]
[WhiteClock "0:00:44"]
[BlackClock "0:00:41"]

1. e4 {[%clk 0:02:59]}  c6 {[%clk 0:02:59]} 2. d4 {[%clk 0:02:56]}  d5 {[%clk 0:02:59]} 3. exd5 {[%clk 0:02:55]}  cxd5 {[%clk 0:02:59]} 4. Bd3 {[%clk 0:02:55]}  Nc6 {[%clk 0:02:59]} 5. c3 {[%clk 0:02:55]}  Nf6 {[%clk 0:02:58]} 6. h3 {[%clk 0:02:54]}  g6 {[%clk 0:02:58]} 7. Nf3 {[%clk 0:02:54]}  Bg7 {[%clk 0:02:58]} 8. O-O {[%clk 0:02:54]}  Bf5 {[%clk 0:02:58]} 9. Be2 {[%clk 0:02:49]}  O-O {[%clk 0:02:57]} 10. Re1 {[%clk 0:02:44]}  a6 {[%clk 0:02:34]} 11. Nbd2 {[%clk 0:02:39]}  b5 {[%clk 0:02:34]} 12. Nb3 {[%clk 0:02:36]}  Ne4 {[%clk 0:02:30]} 13. Bf4 {[%clk 0:02:32]}  h6 {[%clk 0:02:18]} 14. Bd3 {[%clk 0:02:14]}  Qb6 {[%clk 0:02:01]} 15. g4 {[%clk 0:01:57]}  Be6 {[%clk 0:02:00]} 16. Bxe4 {[%clk 0:01:52]}  dxe4 {[%clk 0:02:00]} 17. Rxe4 {[%clk 0:01:53]}  Bd5 {[%clk 0:02:01]} 18. Re1 {[%clk 0:01:51]}  a5 {[%clk 0:01:55]} 19. Nc5 {[%clk 0:01:47]}  Ra7 {[%clk 0:01:49]} 20. Ne5 {[%clk 0:01:17]}  Nxe5 {[%clk 0:01:40]} 21. Bxe5 {[%clk 0:01:17]}  Bxe5 {[%clk 0:01:32]} 22. Rxe5 {[%clk 0:01:16]}  Qc6 {[%clk 0:01:28]} 23. f4 {[%clk 0:01:02]}  Rd8 {[%clk 0:00:54]} 24. Qe2 {[%clk 0:00:56]}  Qf6 {[%clk 0:00:50]} 25. Rf1 {[%clk 0:00:54]}  Qh4 {[%clk 0:00:48]} 26. Re3 {[%clk 0:00:47]}  Bc4 {[%clk 0:00:42]} 27. Qf2 {[%clk 0:00:45]}  Bxf1 {[%clk 0:00:41]} 28. Qxh4 {[%clk 0:00:44]} 1-0


[Site "https://www.chess.com"]

[Event "Titled Tuesday Blitz January 17 Early 2023"]
[White "Sarana, Alexey"]
[Black "Artemiev, Vladislav"]
[WhiteFideId "24133795"]
[BlackFideId "24101605"]
[WhiteElo "2685"]
[BlackElo "2701"]
[Result "0-1"]
[Round "08"]
[TimeControl "180+2"]
[Date "2023.01.17"]
[WhiteClock "0:00:19"]
[BlackClock "0:00:05"]

1. d4 {[%clk 0:03:00]}  Nf6 {[%clk 0:02:59]} 2. c4 {[%clk 0:03:01]}  e6 {[%clk 0:02:59]} 3. Nc3 {[%clk 0:03:02]}  d5 {[%clk 0:02:58]} 4. cxd5 {[%clk 0:03:02]}  exd5 {[%clk 0:02:58]} 5. Bf4 {[%clk 0:03:02]}  Bd6 {[%clk 0:02:56]} 6. Bxd6 {[%clk 0:03:03]}  Qxd6 {[%clk 0:02:56]} 7. e3 {[%clk 0:03:03]}  Bf5 {[%clk 0:02:36]} 8. Qf3 {[%clk 0:03:04]}  g6 {[%clk 0:02:12]} 9. Nge2 {[%clk 0:03:02]}  c6 {[%clk 0:02:05]} 10. Qf4 {[%clk 0:02:58]}  Qxf4 {[%clk 0:01:30]} 11. Nxf4 {[%clk 0:02:59]}  Nbd7 {[%clk 0:01:30]} 12. h4 {[%clk 0:02:59]}  h6 {[%clk 0:01:22]} 13. f3 {[%clk 0:02:59]}  Ke7 {[%clk 0:01:09]} 14. g4 {[%clk 0:02:59]}  Be6 {[%clk 0:01:09]} 15. Bd3 {[%clk 0:02:59]}  Rag8 {[%clk 0:00:52]} 16. Kf2 {[%clk 0:02:52]}  Nb6 {[%clk 0:00:47]} 17. Nce2 {[%clk 0:02:50]}  Nc8 {[%clk 0:00:42]} 18. g5 {[%clk 0:02:29]}  Nd7 {[%clk 0:00:34]} 19. Rag1 {[%clk 0:02:12]}  hxg5 {[%clk 0:00:33]} 20. Rxg5 {[%clk 0:02:10]}  Nd6 {[%clk 0:00:28]} 21. h5 {[%clk 0:02:07]}  gxh5 {[%clk 0:00:27]} 22. Rxg8 {[%clk 0:02:01]}  Rxg8 {[%clk 0:00:26]} 23. Rxh5 {[%clk 0:02:02]}  Nf6 {[%clk 0:00:26]} 24. Rh6 {[%clk 0:01:55]}  Bf5 {[%clk 0:00:25]} 25. Ng3 {[%clk 0:01:34]}  Bxd3 {[%clk 0:00:25]} 26. Nxd3 {[%clk 0:01:35]}  Rxg3 {[%clk 0:00:24]} 27. Rxf6 {[%clk 0:01:33]}  Rh3 {[%clk 0:00:23]} 28. Rf4 {[%clk 0:00:28]}  Rh2+ {[%clk 0:00:23]} 29. Kg3 {[%clk 0:00:29]}  Rd2 {[%clk 0:00:12]} 30. Nc5 {[%clk 0:00:29]}  Rxb2 {[%clk 0:00:12]} 31. e4 {[%clk 0:00:30]}  dxe4 {[%clk 0:00:11]} 32. fxe4 {[%clk 0:00:31]}  b6 {[%clk 0:00:08]} 33. Na6 {[%clk 0:00:26]}  Nb5 {[%clk 0:00:05]} 34. e5 {[%clk 0:00:22]}  Nc3 {[%clk 0:00:05]} 35. a3 {[%clk 0:00:18]}  Ne2+ {[%clk 0:00:05]} 36. Kf3 {[%clk 0:00:18]}  Nxf4 {[%clk 0:00:06]} 37. Kxf4 {[%clk 0:00:19]}  Rb3 {[%clk 0:00:05]} 38. Nb8 {[%clk 0:00:19]}  Rc3 {[%clk 0:00:05]} 39. Ke4 {[%clk 0:00:20]}  Rc1 {[%clk 0:00:04]} 40. Kd3 {[%clk 0:00:19]}  Kd8 {[%clk 0:00:04]} 41. Ke4 {[%clk 0:00:19]}  Kc7 {[%clk 0:00:04]} 42. Na6+ {[%clk 0:00:20]}  Kb7 {[%clk 0:00:04]} 43. Nb4 {[%clk 0:00:21]}  a5 {[%clk 0:00:04]} 44. Nd3 {[%clk 0:00:21]}  Ra1 {[%clk 0:00:05]} 45. d5 {[%clk 0:00:18]}  cxd5+ {[%clk 0:00:04]} 46. Kxd5 {[%clk 0:00:19]}  Rxa3 {[%clk 0:00:05]} 47. Nb2 {[%clk 0:00:20]}  Rf3 {[%clk 0:00:04]} 48. Ke4 {[%clk 0:00:20]}  Rf1 {[%clk 0:00:04]} 49. Ke3 {[%clk 0:00:19]}  Rb1 {[%clk 0:00:03]} 50. Na4 {[%clk 0:00:19]}  Kc6 {[%clk 0:00:03]} 51. Kd3 {[%clk 0:00:18]}  Rb3+ {[%clk 0:00:04]} 52. Kc2 {[%clk 0:00:19]}  Ra3 {[%clk 0:00:04]} 53. Nb2 {[%clk 0:00:19]}  Ra2 {[%clk 0:00:04]} 54. Kb3 {[%clk 0:00:19]}  Rxb2+ {[%clk 0:00:05]} 0-1


[Site "https://www.chess.com"]

[Event "Titled Tuesday Blitz January 17 Early 2023"]
[White "Bernadskiy, Vitaliy"]
[Black "Lazavik, Denis"]
[WhiteFideId "14100371"]
[BlackFideId "13515110"]
[WhiteElo "2592"]
[BlackElo "2544"]
[Result "0-1"]
[Round "08"]
[TimeControl "180+2"]
[Date "2023.01.17"]
[WhiteClock "0:00:01"]
[BlackClock "0:00:17"]

1. d4 {[%clk 0:03:00]}  Nf6 {[%clk 0:03:00]} 2. Nf3 {[%clk 0:03:01]}  d5 {[%clk 0:03:00]} 3. c4 {[%clk 0:03:01]}  e6 {[%clk 0:03:00]} 4. Nc3 {[%clk 0:03:01]}  Be7 {[%clk 0:03:00]} 5. Bg5 {[%clk 0:03:01]}  h6 {[%clk 0:03:00]} 6. Bh4 {[%clk 0:03:01]}  dxc4 {[%clk 0:02:59]} 7. e3 {[%clk 0:02:59]}  c5 {[%clk 0:02:57]} 8. dxc5 {[%clk 0:02:57]}  Qxd1+ {[%clk 0:02:44]} 9. Rxd1 {[%clk 0:02:58]}  Nbd7 {[%clk 0:02:44]} 10. c6 {[%clk 0:02:57]}  bxc6 {[%clk 0:02:44]} 11. Bxc4 {[%clk 0:02:56]}  Rb8 {[%clk 0:02:42]} 12. Rd2 {[%clk 0:02:52]}  Nd5 {[%clk 0:02:37]} 13. Bxe7 {[%clk 0:02:44]}  Kxe7 {[%clk 0:02:38]} 14. O-O {[%clk 0:02:34]}  N7b6 {[%clk 0:02:25]} 15. Be2 {[%clk 0:02:26]}  Nxc3 {[%clk 0:02:12]} 16. bxc3 {[%clk 0:02:27]}  Bd7 {[%clk 0:02:12]} 17. Ne5 {[%clk 0:02:20]}  Be8 {[%clk 0:02:08]} 18. Rfd1 {[%clk 0:02:12]}  f6 {[%clk 0:02:05]} 19. Nf3 {[%clk 0:02:12]}  Nd5 {[%clk 0:02:00]} 20. Rc1 {[%clk 0:01:54]}  g5 {[%clk 0:01:52]} 21. Nd4 {[%clk 0:01:49]}  Bd7 {[%clk 0:01:42]} 22. Bc4 {[%clk 0:01:44]}  Nb6 {[%clk 0:01:35]} 23. Be2 {[%clk 0:01:29]}  e5 {[%clk 0:01:32]} 24. Nb3 {[%clk 0:01:29]}  Rhd8 {[%clk 0:01:31]} 25. Nc5 {[%clk 0:01:23]}  Be8 {[%clk 0:01:30]} 26. Rcd1 {[%clk 0:01:19]}  Rxd2 {[%clk 0:01:29]} 27. Rxd2 {[%clk 0:01:20]}  Nd5 {[%clk 0:01:29]} 28. Rc2 {[%clk 0:01:07]}  Rb1+ {[%clk 0:01:27]} 29. Bf1 {[%clk 0:01:07]}  Bg6 {[%clk 0:01:24]} 30. Rd2 {[%clk 0:00:54]}  Nxc3 {[%clk 0:01:15]} 31. Rd7+ {[%clk 0:00:49]}  Ke8 {[%clk 0:01:14]} 32. g4 {[%clk 0:00:43]}  Na4 {[%clk 0:00:56]} 33. Rg7 {[%clk 0:00:41]}  Nxc5 {[%clk 0:00:56]} 34. Rxg6 {[%clk 0:00:41]}  Kf7 {[%clk 0:00:57]} 35. Rxh6 {[%clk 0:00:41]}  Kg7 {[%clk 0:00:57]} 36. Rh5 {[%clk 0:00:37]}  Ne4 {[%clk 0:00:53]} 37. Kg2 {[%clk 0:00:30]}  Rb2 {[%clk 0:00:53]} 38. h4 {[%clk 0:00:26]}  Rxf2+ {[%clk 0:00:50]} 39. Kg1 {[%clk 0:00:26]}  Rf3 {[%clk 0:00:43]} 40. Bg2 {[%clk 0:00:24]}  Rxe3 {[%clk 0:00:43]} 41. hxg5 {[%clk 0:00:13]}  Nxg5 {[%clk 0:00:43]} 42. Bxc6 {[%clk 0:00:13]}  Rg3+ {[%clk 0:00:43]} 43. Kf2 {[%clk 0:00:13]}  Rxg4 {[%clk 0:00:43]} 44. Rh1 {[%clk 0:00:14]}  Rc4 {[%clk 0:00:43]} 45. Bd5 {[%clk 0:00:13]}  Rd4 {[%clk 0:00:42]} 46. Bb3 {[%clk 0:00:13]}  a5 {[%clk 0:00:41]} 47. Rc1 {[%clk 0:00:13]}  Kg6 {[%clk 0:00:29]} 48. Ke3 {[%clk 0:00:11]}  a4 {[%clk 0:00:25]} 49. Bc2+ {[%clk 0:00:11]}  Kg7 {[%clk 0:00:20]} 50. Bd3 {[%clk 0:00:10]}  Rh4 {[%clk 0:00:18]} 51. Rc7+ {[%clk 0:00:10]}  Kh6 {[%clk 0:00:17]} 52. Rc6 {[%clk 0:00:09]}  Rh3+ {[%clk 0:00:18]} 53. Ke2 {[%clk 0:00:10]}  Kg7 {[%clk 0:00:18]} 54. Rc7+ {[%clk 0:00:10]}  Kf8 {[%clk 0:00:18]} 55. Rc6 {[%clk 0:00:11]}  Ke7 {[%clk 0:00:17]} 56. Ra6 {[%clk 0:00:09]}  Ne6 {[%clk 0:00:16]} 57. Rxa4 {[%clk 0:00:06]}  Nf4+ {[%clk 0:00:16]} 58. Rxf4 {[%clk 0:00:07]}  exf4 {[%clk 0:00:16]} 59. Bf5 {[%clk 0:00:04]}  Ra3 {[%clk 0:00:16]} 60. Kf2 {[%clk 0:00:03]}  Kd6 {[%clk 0:00:16]} 61. Be4 {[%clk 0:00:01]}  Ke5 {[%clk 0:00:17]} 0-1


[Site "https://www.chess.com"]